Workbook

Sheet модель
C1: =$D$39/6.7 -> 373.1343284 | D1: 100 | E1: 0
C2: =$D$82/6.7 -> 95.52238806 | E2: =E1+$D$1 -> 100
E3: =E2+$D$1 -> 200
E4: 300
E5: 400
E6: 500
E7: 600
E8: 700
E9: 800
E10: 900
E11: 1000
E12: 1100
E13: 1200
E14: 1300
E15: 1400
E16: 1500
E17: 1600
E18: 1700
E19: 1800
E20: 1900
E21: 2000
E22: 2100
E23: 2200
E24: 2300
E25: 2400
E26: 2500
E27: 2600
E28: 2700
E29: 2800
E30: 2900
E31: 3000
B38: Параметры | C38: Единицы измерения | D38: Значение
A39: 1 | B39: Глубина скважины по вертикали (Н) | C39: м | D39: 2500
A40: 2 | B40: Пластовое давление (Pп л) | C40: МПа; | D40: =ROUND(D39/100,3) -> 25
A41: 3 | B41: Забойное давление (Pзаб) | C41: МПа; | D41: 20
A42: 4 | B42: Давление насыщения (Рнас) | C42: МПа; | D42: 5.8
A43: 5 | B43: Газовый фактор (Го) | C43: м3/т; | D43: 41.5
A44: 6 | B44: Коэффициент продуктивности (Кпр) | C44: т/ сут МПа | D44: 1
A45: 7 | B45: Обводненность (nв) | C45: % | D45: 0.28
A46: 8 | B46: Плотность воды (рв) | C46: кг/м3 | D46: 1120
A47: 9 | B47: Плотность нефти ( рн) | C47: кг/м3 | D47: 828
A48: 10 | B48: Плотность газа (рг) | C48: кг/м3 | D48: 1.2
A49: 11 | B49: Допустимое газосодержание | D49: 0.15
A50: 12 | B50: ускорение | D50: 9.8
A51: 13 | B51: Давление на устье (Pv) | C51: МПа; | D51: 1.8
A52: 14 | B52: Объемный коэффициент (в) | D52: 1.2
A53: 15 | B53: Диаметр эксплуатационной колонны (D) | C53: мм | D53: 146
B69: 1. Определяем плотность газожидкостной смеси рcм, кг/ м3:
B70: рcм=[ рн+ ргГо+ рвnв/(1-nв)] / [ в + nв/(1-nв)](4.2) | D70: =ROUND((D47+D48*D43+D46*D45/(1-D45))/((D48+D45/(1-D45))),1) -> 826.6 | E70: (828+1,2*41,5+1120*0,28/(1-0,28))/((1,2+0,28/(1-0,28)))
B72: 2. Определяем планируемый дебит Qж, т/сут., скважины по уравнению притока
B73: Q=Кпр(Pп л- Рзаб)n(4.1) | D73: =ROUND(D44*(D40-D41)*10,1) -> 50 | E73: 1*(25-20)*10
B75: 3.Определяем глубину расположения динамического уровня
D76: =D39-D41/(D70*D50)*1000000 -> 31.07146561 | E76: 2500-20/(826,5*9,8)*1000000
B78: 4. Определяем оптимальное давление на приеме насоса Рпр.опт, МПа:
D79: =(1-D49)*$D$42 -> 4.93 | E79: (1-0,15)*5,8
B81: 5. Определяем глубину погружения насоса LH,м:
D82: =ROUND(D76+D79/(D70*D50)*1000000,0) -> 640 | E82: 31+4,93/(826,6*9,8)*1000000

Sheet шгн1
C1: =$D$39/6.7 -> 417.9104478 | D1: 100 | E1: 0
C2: =$D$82/6.7 -> 283.880597 | E2: =E1+$D$1 -> 100
E3: =E2+$D$1 -> 200
E4: 300
E5: 400
E6: 500
E7: 600
E8: 700
E9: 800
E10: 900
E11: 1000
E12: 1100
E13: 1200
E14: 1300
E15: 1400
E16: 1500
E17: 1600
E18: 1700
E19: 1800
E20: 1900
E21: 2000
E22: 2100
E23: 2200
E24: 2300
E25: 2400
E26: 2500
E27: 2600
E28: 2700
E29: 2800
E30: 2900
E31: 3000
B38: Параметры | C38: Единицы измерения | D38: Значение
A39: 1 | B39: Глубина скважины по вертикали (Н) | C39: м | D39: 2800
A40: 2 | B40: Пластовое давление (Pп л) | C40: МПа; | D40: =ROUND(D39/100,3) -> 28
A41: 3 | B41: Забойное давление (Pзаб) | C41: МПа; | D41: 15
A42: 4 | B42: Давление насыщения (Рнас) | C42: МПа; | D42: 8
A43: 5 | B43: Газовый фактор (Го) | C43: м3/т; | D43: 45.9
A44: 6 | B44: Коэффициент продуктивности (Кпр) | C44: т/ сут МПа | D44: 1.5
A45: 7 | B45: Обводненность (nв) | C45: % | D45: 0.48
A46: 8 | B46: Плотность воды (рв) | C46: кг/м3 | D46: 1128
A47: 9 | B47: Плотность нефти ( рн) | C47: кг/м3 | D47: 825
A48: 10 | B48: Плотность газа (рг) | C48: кг/м3 | D48: 1.2
A49: 11 | B49: допустимое газосодержание | D49: 0.12
A50: 12 | B50: ускорение | D50: 9.8
A51: 13 | B51: Давление на устье (Pv) | C51: МПа; | D51: 1.8
A52: 14 | B52: Объемный коэффициент (в) | D52: 1.2
A53: 15 | B53: Диаметр эксплуатационной колонны (D) | C53: мм | D53: 146
B69: 1. Определяем плотность газожидкостной смеси рcм, кг/ м3:
B70: рcм=[ рн+ ргГо+ рвnв/(1-nв)] / [ в + nв/(1-nв)](4.2) | D70: =ROUND((D47+D48*D43+D46*D45/(1-D45))/((D48+D45/(1-D45))),1) -> 905
B72: 2. Определяем планируемый дебит Qж, т/сут., скважины по уравнению притока
B73: Q=Кпр(Pп л- Рзаб)n(4.1) | D73: =ROUND(D44*(D40-D41)*10,1) -> 195
B75: 3.Определяем глубину расположения динамического уровня
D76: =D39-D41/(D70*D50)*1000000 -> 1108.715751
B78: 4. Определяем оптимальное давление на приеме насоса Рпр.опт, МПа:
D79: =(1-D49)*$D$42 -> 7.04
B81: 5. Определяем глубину погружения насоса LH,м:
D82: =ROUND(D76+D79/(D70*D50)*1000000,0) -> 1902

Sheet шгн2
C1: =$D$39/6.7 -> 268.6567164 | D1: 100 | E1: 0
C2: =$D$82/6.7 -> 134.6268657 | E2: =E1+$D$1 -> 100
E3: =E2+$D$1 -> 200
E4: 300
E5: 400
E6: 500
E7: 600
E8: 700
E9: 800
E10: 900
E11: 1000
E12: 1100
E13: 1200
E14: 1300
E15: 1400
E16: 1500
E17: 1600
E18: 1700
E19: 1800
E20: 1900
E21: 2000
E22: 2100
E23: 2200
E24: 2300
E25: 2400
E26: 2500
E27: 2600
E28: 2700
E29: 2800
E30: 2900
E31: 3000
B38: Параметры | C38: Единицы измерения | D38: Значение
A39: 1 | B39: Глубина скважины по вертикали (Н) | C39: м | D39: 1800
A40: 2 | B40: Пластовое давление (Pп л) | C40: МПа; | D40: =ROUND(D39/100,3) -> 18
A41: 3 | B41: Забойное давление (Pзаб) | C41: МПа; | D41: 15
A42: 4 | B42: Давление насыщения (Рнас) | C42: МПа; | D42: 8
A43: 5 | B43: Газовый фактор (Го) | C43: м3/т; | D43: 45.9
A44: 6 | B44: Коэффициент продуктивности (Кпр) | C44: т/ сут МПа | D44: 1.5
A45: 7 | B45: Обводненность (nв) | C45: % | D45: 0.48
A46: 8 | B46: Плотность воды (рв) | C46: кг/м3 | D46: 1128
A47: 9 | B47: Плотность нефти ( рн) | C47: кг/м3 | D47: 825
A48: 10 | B48: Плотность газа (рг) | C48: кг/м3 | D48: 1.2
A49: 11 | B49: допустимое газосодержание | D49: 0.12
A50: 12 | B50: ускорение | D50: 9.8
A51: 13 | B51: Давление на устье (Pv) | C51: МПа; | D51: 1.8
A52: 14 | B52: Объемный коэффициент (в) | D52: 1.2
A53: 15 | B53: Диаметр эксплуатационной колонны (D) | C53: мм | D53: 146
B69: 1. Определяем плотность газожидкостной смеси рcм, кг/ м3:
B70: рcм=[ рн+ ргГо+ рвnв/(1-nв)] / [ в + nв/(1-nв)](4.2) | D70: =ROUND((D47+D48*D43+D46*D45/(1-D45))/((D48+D45/(1-D45))),1) -> 905
B72: 2. Определяем планируемый дебит Qж, т/сут., скважины по уравнению притока
B73: Q=Кпр(Pп л- Рзаб)n(4.1) | D73: =ROUND(D44*(D40-D41)*10,1) -> 45
B75: 3.Определяем глубину расположения динамического уровня
D76: =D39-D41/(D70*D50)*1000000 -> 108.7157515
B78: 4. Определяем оптимальное давление на приеме насоса Рпр.опт, МПа:
D79: =(1-D49)*$D$42 -> 7.04
B81: 5. Определяем глубину погружения насоса LH,м:
D82: =ROUND(D76+D79/(D70*D50)*1000000,0) -> 902

Sheet эцн
C1: =$D$39/6.7 -> 328.358209 | D1: 100 | E1: 0
C2: =$D$82/6.7 -> 194.3283582 | E2: =E1+$D$1 -> 100
E3: =E2+$D$1 -> 200
E4: 300
E5: 400
E6: 500
E7: 600
E8: 700
E9: 800
E10: 900
E11: 1000
E12: 1100
E13: 1200
E14: 1300
E15: 1400
E16: 1500
E17: 1600
E18: 1700
E19: 1800
E20: 1900
E21: 2000
E22: 2100
E23: 2200
E24: 2300
E25: 2400
E26: 2500
E27: 2600
E28: 2700
E29: 2800
E30: 2900
E31: 3000
B38: Параметры | C38: Единицы измерения | D38: Значение
A39: 1 | B39: Глубина скважины по вертикали (Н) | C39: м | D39: 2200
A40: 2 | B40: Пластовое давление (Pп л) | C40: МПа; | D40: =ROUND(D39/100,3) -> 22
A41: 3 | B41: Забойное давление (Pзаб) | C41: МПа; | D41: 15
A42: 4 | B42: Давление насыщения (Рнас) | C42: МПа; | D42: 8
A43: 5 | B43: Газовый фактор (Го) | C43: м3/т; | D43: 45.9
A44: 6 | B44: Коэффициент продуктивности (Кпр) | C44: т/ сут МПа | D44: 1.5
A45: 7 | B45: Обводненность (nв) | C45: % | D45: 0.48
A46: 8 | B46: Плотность воды (рв) | C46: кг/м3 | D46: 1128
A47: 9 | B47: Плотность нефти ( рн) | C47: кг/м3 | D47: 825
A48: 10 | B48: Плотность газа (рг) | C48: кг/м3 | D48: 1.2
A49: 11 | B49: допустимое газосодержание | D49: 0.12
A50: 12 | B50: ускорение | D50: 9.8
A51: 13 | B51: Давление на устье (Pv) | C51: МПа; | D51: 1.8
A52: 14 | B52: Объемный коэффициент (в) | D52: 1.2
A53: 15 | B53: Диаметр эксплуатационной колонны (D) | C53: мм | D53: 146
B69: 1. Определяем плотность газожидкостной смеси рcм, кг/ м3:
B70: рcм=[ рн+ ргГо+ рвnв/(1-nв)] / [ в + nв/(1-nв)](4.2) | D70: =ROUND((D47+D48*D43+D46*D45/(1-D45))/((D48+D45/(1-D45))),1) -> 905
B72: 2. Определяем планируемый дебит Qж, т/сут., скважины по уравнению притока
B73: Q=Кпр(Pп л- Рзаб)n(4.1) | D73: =ROUND(D44*(D40-D41)*10,1) -> 105
B75: 3.Определяем глубину расположения динамического уровня
D76: =D39-D41/(D70*D50)*1000000 -> 508.7157515
B78: 4. Определяем оптимальное давление на приеме насоса Рпр.опт, МПа:
D79: =(1-D49)*$D$42 -> 7.04
B81: 5. Определяем глубину погружения насоса LH,м:
D82: =ROUND(D76+D79/(D70*D50)*1000000,0) -> 1302
